Cogmind - Beta 13 @@@ ROGUE MODE // 2024.05.28 @ 22:00:31 Player: netthier Result: Self-destructed Performance ------------- Evolutions (1) 500 Regions Visited (2) 400 Robots Destroyed (11) 55 Value Destroyed (357) 357 Prototype IDs (2) 40 Alien Tech Used (0) 0 Bonus (0) 0 TOTAL SCORE: 1352 Bonus ------- None Cogmind --------- Core Integrity 49/400 Matter 300/300 Energy 100/100 System Corruption 0% Temperature Cool (0) Movement Core (100) Ox1 Location -9/Materials Parts ------- > --- POWER (2) -------- (None) > --- PROPULSION (2) --- (None) > --- UTILITY (3) ------ Small Storage Unit > --- WEAPON (2) ------- (None) > --- INVENTORY (8) ---- (None) Peak State ------------ > --- POWER ------------ Light Ion Engine > --- PROPULSION ------- Aluminum Leg > --- UTILITY ---------- Small Storage Unit High-capacity Battery Structural Scanner > --- WEAPON ----------- Medium Laser Light Assault Rifle > --- INVENTORY -------- Assault Rifle [Rating: 7] Favorites ----------- Power Light Ion Engine Engine Light Ion Engine Propulsion Aluminum Leg Leg Aluminum Leg Utility Small Storage Unit Device Structural Scanner Storage Small Storage Unit Weapon Medium Laser Energy Gun Medium Laser Ballistic Gun Assault Rifle Launcher Grenade Launcher Build | -11 -10 -9 ------- Run | Yrd Mat Mat Slots Evolved 2 | . . 2 Power 1 | . . 1 Propulsion . | . . . Utility 1 | . . 1 Weapon . | . . . Parts Attached 17 | 7 3 7 Power 3 | 1 1 1 Engine 3 | 1 1 1 Core . | . . . Reactor . | . . . Propulsion 2 | 2 . . Treads . | . . . Leg 2 | 2 . . Wheel . | . . . Hover . | . . . Flight . | . . . Utility 3 | 1 . 2 Device 1 | . . 1 Storage 2 | 1 . 1 Processor . | . . . Hackware . | . . . Protection . | . . . Artifact . | . . . Weapon 9 | 3 2 4 Energy Gun 1 | 1 . . Energy Cannon . | . . . Ballistic Gun 6 | 2 1 3 Ballistic Cannon . | . . . Launcher 2 | . 1 1 Special Weapon . | . . . Impact Weapon . | . . . Slashing Weapon . | . . . Piercing Weapon . | . . . Special Melee Weapon . | . . . Unidentified Prototypes . | . . . Parts Lost 10 | . . 10 Power 2 | . . 2 Propulsion 2 | . . 2 Utility 2 | . . 2 Weapon 4 | . . 4 Highest Loss Streak 5 | . . 5 To Critical Strikes . | . . . Average Slot Usage (%) 70 | . 80 60 Engine 10 | . 14 7 Leg 20 | . 28 12 Device 2 | . . 5 Storage 15 | . 14 16 Energy Gun 10 | . 14 6 Ballistic Gun 10 | . 9 12 Naked Turns . | . . . Heaviest Build 16 | 12 14 16 Greatest Support 20 | 20 20 20 Greatest Overweight (x) 4 | 2 . 4 Average Overweight (x) . | . . . Largest Inventory Capacity 8 | 8 8 8 Average Capacity 7 | 7 8 8 Most Carried 5 | 4 5 5 Average Carried 2 | 1 3 2 Final Capacity 8 | 8 8 8 Final Carried 5 | 2 5 . Class Distribution -------------------- 100% | Mutant Dominant Class ---------------- Mutant | -10/Materials Mutant | -9/Materials Resources | -11 -10 -9 ----------- Run | Yrd Mat Mat Matter Collected 414 | 190 109 115 Remotely . | . . . Salvage Created 404 | . 143 261 Parts 19 | . 6 13 Haulers Intercepted . | . . . Recyclers Shooed . | . . . Parts Field Recycled . | . . . Retrieved Matter . | . . . Parts Self-Destructed . | . . . Prevented . | . . . Kills | -11 -10 -9 ------- Run | Yrd Mat Mat Combat Hostiles Destroyed 9 | . 3 6 Guns 7 | . 1 6 AOE 2 | . 2 . Classes Destroyed 5 | . 3 2 Recycler 1 | . 1 . Watcher 1 | . 1 . Swarmer 1 | . . 1 Grunt 5 | . 3 2 Sentry 3 | . . 3 Best Kill Streak 5 | . 5 2 Combat Bots Only 3 | . 3 2 Max Kills in Single Turn 4 | . 4 1 Gunslinging . | . . . Exploded 2 | . 2 . Melee . | . . . Uniques/NPCs Destroyed . | . . . Combat | -11 -10 -9 -------- Run | Yrd Mat Mat Hostile Shots Fired 147 | . 4 143 Missed 47 | . 1 46 Damage Taken 1096 | . 32 1064 Core 351 | . . 351 Absorbed by Shields . | . . . Core Remaining (%) 100 | 100 100 . Volleys Fired 53 | . 12 41 Largest 2 | . 2 2 Hottest 80 | . 80 70 Shots Fired 73 | . 20 53 Gun 71 | . 18 53 Cannon . | . . . Launcher 2 | . 2 . Special . | . . . Kinetic 48 | . 7 41 Thermal 23 | . 11 12 Explosive 2 | . 2 . Electromagnetic . | . . . Robot Hit Streak 6 | . 2 6 Robot Miss Streak 11 | . 6 11 Penetration Max . | . . . Secondary Targets . | . . . Shots Hit Robots 27 | . 4 23 Core Hits 23 | . 7 16 Critical Kills . | . . . Critical Parts Destroyed . | . . . Critical Strikes . | . . . Melee Attacks . | . . . Impact . | . . . Slashing . | . . . Piercing . | . . . Sneak Attacks . | . . . Combat Hostiles . | . . . Follow-up Attacks . | . . . Damage Inflicted 538 | . 310 228 Guns 304 | . 76 228 Cannons . | . . . Explosions 234 | . 234 . Melee . | . . . Ramming . | . . . Kinetic 218 | . 27 191 Thermal 86 | . 49 37 Explosive 234 | . 234 . Electromagnetic . | . . . Impact . | . . . Slashing . | . . . Piercing . | . . . Highest Corruption . | . . . Average Corruption . | . . . Corruption Purged . | . . . Corruption Blocked . | . . . Overload Shots . | . . . Overflow Damage 5 | . 5 . Projectiles . | . . . Explosions 5 | . 5 . Melee . | . . . Knockbacks . | . . . Impact . | . . . Kinetic . | . . . Secondary . | . . . Self-Inflicted Damage . | . . . Shots . | . . . Rammed . | . . . Targets Rammed . | . . . Kicked . | . . . Crushed . | . . . Highest Temperature 52 | . 52 47 Average Temperature 17 | . 18 15 Received Heat Transfer 294 | . 18 276 Siege Activations . | . . . Robots Corrupted . | . . . Combat Hostiles . | . . . Parts Fried . | . . . Impact Corruptions . | . . . Robots Melted . | . . . Combat Hostiles . | . . . Parts Melted . | . . . Heat Transferred 259 | . 148 111 Parts Sabotaged . | . . . Parts Stolen . | . . . Parts Stripped . | . . . Power Chain Reactions . | . . . Alert | -11 -10 -9 ------- Run | Yrd Mat Mat Peak Influence 185 | . 169 185 Initial 70 | . . 70 Average 96 | . 92 122 Maximum Alert Level . | . . . Low Security (%) 100 | 100 100 100 Level 1 . | . . . Level 2 . | . . . Level 3 . | . . . Level 4 . | . . . Level 5 . | . . . High Security . | . . . Max Security . | . . . Squads Dispatched 4 | . 2 2 Investigation . | . . . Extermination . | . . . Reinforcement 4 | . 2 2 Assault . | . . . Garrison . | . . . Intercept . | . . . Searches Triggered . | . . . Construction Impeded . | . . . Haulers Reinforced . | . . . Active Scanning Responses . | . . . Cargo Convoy Interrupts . | . . . Stealth | -11 -10 -9 --------- Run | Yrd Mat Mat Distress Signals 5 | . 3 2 Communications Jammed . | . . . Distress Signals . | . . . Times Spotted 30 | . 10 20 Peak Tracking Total 12 | . 4 12 Tactical Retreats 2 | . 1 1 Traps | -11 -10 -9 ------- Run | Yrd Mat Mat Traps Triggered 1 | . 1 . Indirectly . | . . . Trap Hack Attempts . | . . . Triggered . | . . . Disarmed . | . . . Reprogrammed . | . . . Reused . | . . . Traps Extracted . | . . . Installed . | . . . Triggered . | . . . Machines | -11 -10 -9 ---------- Run | Yrd Mat Mat Machines Disabled 2 | . 2 . Max in Single Turn 1 | . 1 . Machines Repaired . | . . . Machines Dismantled . | . . . Machines Sabotaged . | . . . Overloaded Fab Kills . | . . . Hacking | -11 -10 -9 --------- Run | Yrd Mat Mat Machines Accessed 3 | . 2 1 Terminals 2 | . 1 1 Fabricators . | . . . Repair Stations . | . . . Recycling Units 1 | . 1 . Scanalyzers . | . . . Garrison Access . | . . . Total Hacks 9 | . 7 2 Successful 6 | . 4 2 Failed 3 | . 3 . Catastrophic . | . . . Database Lockouts . | . . . Manual . | . . . Terminals 5 | . 3 2 Fabricators . | . . . Repair Stations . | . . . Recycling Units 4 | . 4 . Scanalyzers . | . . . Garrison Access . | . . . Terminal Hacks 3 | . 1 2 Record 1 | . . 1 Prototype ID Bank 1 | . 1 . Recall Reinforcements 1 | . . 1 Fabricator Hacks . | . . . Repair Station Hacks . | . . . Recycling Unit Hacks 3 | . 3 . Recycle Component 1 | . 1 . Process 1 | . 1 . Retrieve Matter 1 | . 1 . Scanalyzer . | . . . Garrison Access Hacks . | . . . Unauthorized Hacks . | . . . Terminals . | . . . Fabricators . | . . . Repair Stations . | . . . Recycling Units . | . . . Scanalyzers . | . . . Garrison Access . | . . . Data Cores Recovered . | . . . Used . | . . . Hacking Detections 2 | . 2 . Full Trace Events . | . . . Feedback Events . | . . . Feedback Blocked . | . . . Robot Schematics Acquired . | . . . Robots Built . | . . . Authchips . | . . . Time . | . . . Total Robot Build Rating . | . . . Part Schematics Acquired . | . . . Parts Built . | . . . Authchips . | . . . Time . | . . . Total Part Build Rating . | . . . Parts Repaired . | . . . Time . | . . . Parts Recycled 1 | . 1 . Recycled Matter 20 | . 20 . Retrieved Matter 20 | . 20 . Retrieved Components . | . . . Parts Scanalyzed . | . . . Part Schematics Acquired . | . . . Parts Damaged . | . . . Bothacking | -11 -10 -9 ------------ Run | Yrd Mat Mat Used RIF Installer . | . . . Robots Hacked . | . . . Non-combat . | . . . Combat . | . . . Robot Hacks Applied . | . . . Relay Couplers Released . | . . . Fabnet Peak Effective % . | . . . Robots Rewired . | . . . Allies Hacked . | . . . Hacks Repelled . | . . . Allies | -11 -10 -9 -------- Run | Yrd Mat Mat Total Allies . | . . . Largest Group . | . . . Highest-Rated Group . | . . . Highest-Rated Ally . | . . . Total Orders . | . . . Ally Attacks . | . . . Total Damage . | . . . Kills . | . . . Allies Corrupted . | . . . Allies Melted . | . . . Intel | -11 -10 -9 ------- Run | Yrd Mat Mat Robot Analysis Total . | . . . Derelict Logs Recovered . | . . . Drone Launches . | . . . Drone Recoveries . | . . . Exploration | -11 -10 -9 ------------- Run | Yrd Mat Mat Turns Passed 680 | 70 311 299 Spaces Moved 388 | 45 226 117 Core 28 | 19 . 9 Treads . | . . . Legs 360 | 26 226 108 Wheels . | . . . Hover . | . . . Flight . | . . . Fastest Speed 50 | 50 120 100 Average Speed 133 | 117 120 166 Slowest Speed 250 | 150 120 250 Overloaded Moves . | . . . Propulsion Burnouts . | . . . Robots Hopped . | . . . Cave-ins Triggered . | . . . Exploration Rate (%) 17 | 5 34 13 Regions Visited 2 Branch Regions . Pre-discovered Areas . | . . . Known Exits Taken . | . . . Unknown Exits Taken 2 | 1 1 . Scrap Searched . | . . . Spaces Dug . | . . . Terrain Destroyed 12 | . 12 . Melee . | . . . Projectile . | . . . AOE 12 | . 12 . Terrain Rammed . | . . . Walls Destroyed . | . . . Machines Disabled . | . . . Actions | -11 -10 -9 --------- Run | Yrd Mat Mat Total 480 | 63 245 172 Wait 10 | 3 . 7 Move 386 | 44 225 117 Hop . | . . . Pick Up 13 | 8 5 . Fast Attach . | . . . Attach 13 | 7 1 5 Detach 1 | 1 . . Swap 4 | . 2 2 Drop . | . . . Fire 53 | . 12 41 Melee . | . . . Ram . | . . . Kick . | . . . Crush . | . . . Escape Stasis . | . . . Rewire . | . . . Trap . | . . . Miscellaneous . | . . . Route ------- -11/Scrapyard -10/Materials -9/Materials (discovered 1 exit: [*Min]) History --------- Turn | Location | Event 15 | -11/Scrapyard | Discovered new exit (range 16) 71 | -11/Scrapyard | Entered Materials 277 | -10/Materials | Discovered new exit (range 3) 323 | -10/Materials | Build established: Mutant 382 | -10/Materials | Entered another Materials area 382 | -9/Materials | Evolved 2 slots: Power x1, Utility x1 493 | -9/Materials | Lost 3 parts (1p1n1w) 494 | -9/Materials | Discovered new exit (range 15) 655 | -9/Materials | Core integrity fell below 50% 677 | -9/Materials | Core integrity fell below 20% 681 | -9/Materials | Self-destructed Last Messages --------------- R-06 Scavenger collects Terrain Scan Processor. R-06 Scavenger destroyed. K-01 Serf collects debris. R-06 Scavenger collects Sml. Storage Unit. K-01 Serf collects debris. Aluminum Leg destroyed. S-10 Pest destroyed. Assault Rifle destroyed. R-06 Scavenger collects Flight Unit. G-34 Mercenary destroyed. K-01 Serf collects debris. ALERT: Hostiles spotted, dispatching reinforcements to Terminal M010. K-01 Serf collects debris. Lgt. Assault Rifle destroyed. S-10 Pest destroyed. K-01 Serf collects debris. Hcp. Battery destroyed. K-01 Serf collects debris. Structural Scanner destroyed. Map ----- +----------------------------------------------------+ | ??????# # ???????## """ ##???????????? | | ####### # """ #?????## """ # ???????????? | | # # "T" """ #?????## """ # ???????????? | | """ # # """ #?????## # ???????????? | | "R" # # """ #?????## """ # ???????????? | | " " + # ??????## """ # ???????????? | | # # ????????## """ # ???????????? | | ! # # ?? ######## % # ??? #? | | ####### ###/###################+################ | | ??# % ##### ## | | ??# =! | | ??# % [%! < | | ??############################# *= %! ^ | | ??????????????????############# #####" "## | | ?????????????????????????????### ######" |"| "## | | ?????????????????????????????### ###??????"??"?? | | ???????????????????############# ##????????????? | | ???????????????????############# ###???????????? | | ???????????????????## ## ###???????????? | | ???????????????????## # ##???????????? | | ???????????????????## # ##???????????? | | ???????????????????## = +% ##???????????? | | ???????????????????## s%=# ##???????????? | | ???????????????????## ks! # ##???????????? | | ???????????????????## *sga###/####???????????? | | ???????????????????## @%sg # ???????????? | | ???????????????????#########b## """ "????????????? | | ???????????????????######### ## """ ""???????????? | | ??????????????????????????## ##?""" """??????????? | | ??????????????????????????## ##??"? """??????????? | | ??????????????????????????## ##?????"????????????? | | ??????????????????????????## ##??????????????????? | | ??????????????????????????## ##??????????????????? | | ??????????????????????????# ??????????????????? | | ??????????????????????????? ???????????????????? | | ??????????????????????????? T???????????????????? | | ??????????????????????????? ???????????????????? | | ??????????????????????????# ???????????????????? | | ??????????????????????????## ???????????????????? | | ??????????????????????????## ????????????????????? | | ???????????????????????????? ????????????????????? | | ?????????????????????????????????????????????????? | | ?????????????????????????????????????????????????? | | ?????????????????????????????????????????????????? | | ?????????????????????????????????????????????????? | | ?????????????????????????????????????????????????? | | ?????????????????????????????????????????????????? | | ?????????????????????????????????????????????????? | | ?????????????????????????????????????????????????? | | ?????????????????????????????????????????????????? | +----------------------------------------------------+ Best States ------------- Heat Dissipation 28 Energy Generation 10 Energy Capacity 375 Matter Stores 300 Matter Capacity 300 Sight Range 16 Terrain Scan Density 10 Evasion (%) 55 Item Schematics ----------------- None Robot Schematics ------------------ None Fabricated ------------ Nothing Alien Tech Used ----------------- None Achievements -------------- GoHome() Storm Trooper Challenges ------------ None Game ------ Seed TargetingGlidesysNukerbomber Manual? 0 Play Time 00:17:07 Cumulative 0.7 hours Start 2024.05.28 @ 21:45:14 End 2024.05.28 @ 22:00:31 Sessions 1 Manual Loads 0 Difficulty Rogue Special Mode None Game No. 3 Rogue 3 Adventurer 0 Explorer 0 Win Type - Total 0 Types 0/0/0/0/0/0/0/0/0 Lore% 1 Gallery% 3 Achievement% 4 Wizard Run 0 Options --------- Layout 1 ASCII 0 Keyboard 0 Movement Mouse Keybinds 0 Fullscreen 2 Font 32/SmallcapsGlow Map View 50x35 Zoom Use 0% Tactical HUD 0 Map Filters NONE Filters NONE Steam 1 RUN: 4c7f38de-200b-43c5-b834-61c0b52bcb9f